Cogmind - Beta 14 @@@ ROGUE MODE // 2025.01.19 @ 13:19:42 Player: abnormality Result: Self-destructed Performance ------------- Evolutions (1) 500 Regions Visited (2) 400 Robots Destroyed (15) 75 Value Destroyed (213) 213 Prototype IDs (2) 40 Alien Tech Used (0) 0 Bonus (0) 0 TOTAL SCORE: 1228 Bonus ------- None Cogmind --------- Core Integrity 219/400 Matter 299/300 Energy 100/100 System Corruption 0% Temperature Cool (27) Movement Flying (120) Ox1 Location -9/Materials Parts ------- > --- POWER (1) -------- (None) > --- PROPULSION (3) --- Flight Unit > --- UTILITY (3) ------ Seismic Detector > --- WEAPON (2) ------- Improved Medium Laser Light Assault Rifle > --- INVENTORY (5) ---- Light Ion Engine Heavy Ion Engine Structural Scanner Peak State ------------ > --- POWER ------------ Heavy Ion Engine > --- PROPULSION ------- Light Treads Light Treads > --- UTILITY ---------- Small Storage Unit Structural Scanner Seismic Detector > --- WEAPON ----------- Small Laser Assault Rifle > --- INVENTORY -------- Light Ion Engine Light Ion Engine Light Assault Rifle [Rating: 10] Favorites ----------- Power Light Ion Engine Engine Light Ion Engine Propulsion Light Treads Treads Light Treads Flight Unit Flight Unit Utility Seismic Detector Device Seismic Detector Storage Small Storage Unit Weapon Assault Rifle Energy Gun Small Laser Ballistic Gun Assault Rifle Build | -11 -10 -9 ------- Run | Yrd Mat Mat Slots Evolved 2 | . . 2 Power . | . . . Propulsion 1 | . . 1 Utility 1 | . . 1 Weapon . | . . . Parts Attached 17 | 8 1 8 Power 3 | 1 . 2 Engine 3 | 1 . 2 Core . | . . . Reactor . | . . . Propulsion 4 | 2 . 2 Treads 2 | 2 . . Leg . | . . . Wheel . | . . . Hover . | . . . Flight 2 | . . 2 Utility 4 | 2 1 1 Device 2 | 1 1 . Storage 2 | 1 . 1 Processor . | . . . Hackware . | . . . Protection . | . . . Artifact . | . . . Weapon 6 | 3 . 3 Energy Gun 2 | 1 . 1 Energy Cannon . | . . . Ballistic Gun 4 | 2 . 2 Ballistic Cannon . | . . . Launcher . | . . . Special Weapon . | . . . Impact Weapon . | . . . Slashing Weapon . | . . . Piercing Weapon . | . . . Special Melee Weapon . | . . . Unidentified Prototypes 2 | . . 2 Parts Lost 4 | . . 4 Power 1 | . . 1 Propulsion 1 | . . 1 Utility . | . . . Weapon 2 | . . 2 Highest Loss Streak 2 | . . 2 To Critical Strikes . | . . . Average Slot Usage (%) 88 | . 100 81 Engine 12 | . 14 11 Treads 20 | . 28 16 Flight 3 | . . 5 Device 20 | . 18 21 Storage 8 | . 9 8 Energy Gun 9 | . 14 6 Ballistic Gun 12 | . 14 11 Peak Build Rating 10 | 7 7 10 Average Rating 7 | 5 7 9 On Entrance 4 | . 7 7 Naked Turns . | . . . Heaviest Build 18 | 12 12 18 Greatest Support 40 | 40 40 40 Greatest Overweight (x) . | . . . Average Overweight (x) . | . . . Largest Inventory Capacity 8 | 8 8 8 Average Capacity 7 | 7 7 7 Most Carried 5 | 5 3 5 Average Carried 2 | 2 2 3 Final Capacity 8 | 8 5 5 Final Carried 3 | 2 3 3 Class Distribution -------------------- 100% | Mutant Dominant Class ---------------- Mutant | -10/Materials Mutant | -9/Materials Resources | -11 -10 -9 ----------- Run | Yrd Mat Mat Matter Collected 473 | 255 . 218 Remotely . | . . . Salvage Created 447 | 159 19 269 Parts 28 | 13 3 12 Haulers Intercepted . | . . . Recyclers Shooed . | . . . Parts Field Recycled . | . . . Retrieved Matter . | . . . Parts Self-Destructed . | . . . Prevented . | . . . Kills | -11 -10 -9 ------- Run | Yrd Mat Mat Combat Hostiles Destroyed 7 | . . 7 Guns 6 | . . 6 Classes Destroyed 5 | 2 1 2 Tunneler 5 | 5 . . Recycler 2 | 1 . 1 Watcher 1 | . 1 . Swarmer 5 | . . 5 Sentry 2 | . . 2 Best Kill Streak 5 | 5 1 4 Combat Bots Only 3 | . . 3 Max Kills in Single Turn 1 | 1 1 1 Gunslinging . | . . . Exploded . | . . . Melee . | . . . Uniques/NPCs Destroyed . | . . . Combat | -11 -10 -9 -------- Run | Yrd Mat Mat Hostile Shots Fired 106 | . . 106 Missed 32 | . . 32 Damage Taken 857 | . . 857 Core 181 | . . 181 Absorbed by Shields . | . . . Core Remaining (%) 100 | 100 100 . Volleys Fired 62 | 11 4 47 Largest 2 | 2 2 2 Hottest 76 | 60 60 76 Shots Fired 93 | 22 8 63 Gun 93 | 22 8 63 Cannon . | . . . Launcher . | . . . Special . | . . . Kinetic 57 | 11 4 42 Thermal 36 | 11 4 21 Explosive . | . . . Electromagnetic . | . . . Robot Hit Streak 9 | 7 2 9 Robot Miss Streak 4 | 3 2 4 Penetration Max . | . . . Secondary Targets . | . . . Shots Hit Robots 54 | 14 4 36 Core Hits 20 | 7 1 12 Critical Kills . | . . . Critical Parts Destroyed . | . . . Critical Strikes 2 | . . 2 Burn 2 | . . 2 Melee Attacks . | . . . Impact . | . . . Slashing . | . . . Piercing . | . . . Sneak Attacks . | . . . Combat Hostiles . | . . . Follow-up Attacks . | . . . Damage Inflicted 659 | 161 48 450 Guns 659 | 161 48 450 Cannons . | . . . Explosions . | . . . Melee . | . . . Ramming . | . . . Kinetic 410 | 98 36 276 Thermal 249 | 63 12 174 Explosive . | . . . Electromagnetic . | . . . Impact . | . . . Slashing . | . . . Piercing . | . . . Highest Corruption . | . . . Average Corruption . | . . . Corruption Purged . | . . . Corruption Blocked . | . . . Overload Shots . | . . . Overflow Damage . | . . . Projectiles . | . . . Explosions . | . . . Melee . | . . . Knockbacks . | . . . Impact . | . . . Kinetic . | . . . Secondary . | . . . Self-Inflicted Damage . | . . . Shots . | . . . Rammed . | . . . Targets Rammed . | . . . Kicked . | . . . Crushed . | . . . Highest Temperature 117 | . . 117 Average Temperature 40 | . . 40 Received Heat Transfer 204 | . . 204 Siege Activations . | . . . Robots Corrupted . | . . . Combat Hostiles . | . . . Parts Fried . | . . . Impact Corruptions . | . . . Robots Melted 1 | . . 1 Combat Hostiles 1 | . . 1 Parts Melted 3 | . . 3 Heat Transferred 706 | 150 25 531 Parts Sabotaged . | . . . Parts Stolen . | . . . Parts Stripped . | . . . Power Chain Reactions . | . . . Alert | -11 -10 -9 ------- Run | Yrd Mat Mat Peak Influence 371 | 30 41 371 Initial 19 | . 19 16 Average 62 | 11 25 101 Maximum Alert Level 1 | . . 1 Low Security (%) 91 | 100 100 83 Level 1 8 | . . 16 Level 2 . | . . . Level 3 . | . . . Level 4 . | . . . Level 5 . | . . . High Security . | . . . Max Security . | . . . Squads Dispatched 1 | . 1 . Investigation . | . . . Extermination . | . . . Reinforcement 1 | . 1 . Assault . | . . . Garrison . | . . . Intercept . | . . . Searches Triggered . | . . . Construction Impeded . | . . . Haulers Reinforced . | . . . Active Scanning Responses . | . . . Cargo Convoy Interrupts . | . . . Stealth | -11 -10 -9 --------- Run | Yrd Mat Mat Distress Signals . | . . . Communications Jammed . | . . . Distress Signals . | . . . Times Spotted 21 | . 3 18 Peak Tracking Total 8 | . 2 8 Tactical Retreats 2 | . . 2 Traps | -11 -10 -9 ------- Run | Yrd Mat Mat Traps Triggered . | . . . Indirectly . | . . . Trap Hack Attempts . | . . . Triggered . | . . . Disarmed . | . . . Reprogrammed . | . . . Reused . | . . . Traps Extracted . | . . . Installed . | . . . Triggered . | . . . Machines | -11 -10 -9 ---------- Run | Yrd Mat Mat Machines Disabled 1 | . . 1 Max in Single Turn 1 | . . 1 Machines Repaired . | . . . Machines Dismantled . | . . . Machines Sabotaged . | . . . Overloaded Fab Kills . | . . . Hacking | -11 -10 -9 --------- Run | Yrd Mat Mat Machines Accessed 3 | . . 3 Terminals 3 | . . 3 Fabricators . | . . . Repair Stations . | . . . Recycling Units . | . . . Scanalyzers . | . . . Garrison Access . | . . . Total Hacks 10 | . . 10 Successful 2 | . . 2 Failed 8 | . . 8 Catastrophic 2 | . . 2 Database Lockouts . | . . . Manual . | . . . Terminals 10 | . . 10 Fabricators . | . . . Repair Stations . | . . . Recycling Units . | . . . Scanalyzers . | . . . Garrison Access . | . . . Terminal Hacks 2 | . . 2 Hauler Manifests 1 | . . 1 Zone Layout 1 | . . 1 Fabricator Hacks . | . . . Repair Station Hacks . | . . . Recycling Unit Hacks . | . . . Scanalyzer . | . . . Garrison Access Hacks . | . . . Unauthorized Hacks . | . . . Terminals . | . . . Fabricators . | . . . Repair Stations . | . . . Recycling Units . | . . . Scanalyzers . | . . . Garrison Access . | . . . Data Cores Recovered . | . . . Used . | . . . Hacking Detections 3 | . . 3 Full Trace Events 1 | . . 1 Feedback Events . | . . . Feedback Blocked . | . . . Robot Schematics Acquired . | . . . Robots Built . | . . . Authchips . | . . . Time . | . . . Total Robot Build Rating . | . . . Part Schematics Acquired . | . . . Parts Built . | . . . Authchips . | . . . Time . | . . . Total Part Build Rating . | . . . Parts Repaired . | . . . Time . | . . . Parts Recycled . | . . . Recycled Matter . | . . . Retrieved Matter . | . . . Retrieved Components . | . . . Parts Scanalyzed . | . . . Part Schematics Acquired . | . . . Parts Damaged . | . . . Bothacking | -11 -10 -9 ------------ Run | Yrd Mat Mat Used RIF Installer . | . . . Robots Hacked . | . . . Non-combat . | . . . Combat . | . . . Robot Hacks Applied . | . . . Relay Couplers Released . | . . . Fabnet Peak Effective % . | . . . Robots Rewired . | . . . Allies Hacked . | . . . Hacks Repelled . | . . . Allies | -11 -10 -9 -------- Run | Yrd Mat Mat Total Allies . | . . . Largest Group . | . . . Highest-Rated Group . | . . . Highest-Rated Ally . | . . . Total Orders . | . . . Ally Attacks . | . . . Total Damage . | . . . Kills . | . . . Allies Corrupted . | . . . Allies Melted . | . . . Intel | -11 -10 -9 ------- Run | Yrd Mat Mat Robot Analysis Total . | . . . Derelict Logs Recovered . | . . . Drone Launches . | . . . Drone Recoveries . | . . . Exploration | -11 -10 -9 ------------- Run | Yrd Mat Mat Turns Passed 781 | 135 245 401 Spaces Moved 479 | 60 137 282 Core 9 | 9 . . Treads 316 | 51 137 128 Legs . | . . . Wheels . | . . . Hover . | . . . Flight 154 | . . 154 Fastest Speed 37 | 50 160 37 Average Speed 118 | 143 160 92 Slowest Speed 160 | 160 160 160 Overloaded Moves . | . . . Propulsion Burnouts . | . . . Robots Hopped . | . . . Cave-ins Triggered . | . . . Exploration Rate (%) 23 | 5 30 35 Regions Visited 2 Branch Regions . Pre-discovered Areas . | . . . Known Exits Taken . | . . . Unknown Exits Taken 2 | 1 1 . Scrap Searched . | . . . Spaces Dug . | . . . Terrain Destroyed . | . . . Melee . | . . . Projectile . | . . . AOE . | . . . Terrain Rammed . | . . . Walls Destroyed . | . . . Machines Disabled . | . . . Actions | -11 -10 -9 --------- Run | Yrd Mat Mat Total 605 | 87 154 364 Wait 28 | . 12 16 Move 477 | 59 136 282 Hop . | . . . Pick Up 15 | 9 1 5 Fast Attach . | . . . Attach 11 | 7 . 4 Detach 2 | . . 2 Swap 6 | 1 1 4 Drop 4 | . . 4 Fire 62 | 11 4 47 Melee . | . . . Ram . | . . . Kick . | . . . Crush . | . . . Escape Stasis . | . . . Rewire . | . . . Trap . | . . . Miscellaneous . | . . . Route ------- -11/Scrapyard -10/Materials (discovered 2 exits: *Mat / [*Min]) -9/Materials History --------- Turn | Location | Event 17 | -11/Scrapyard | Discovered new exit (range 15) 136 | -11/Scrapyard | Entered Materials 197 | -10/Materials | Discovered new exit (range 16) 290 | -10/Materials | Discovered new exit (range 13) 327 | -10/Materials | Build established: Mutant 381 | -10/Materials | Entered another Materials area 381 | -9/Materials | Evolved 2 slots: Propulsion x1, Utility x1 782 | -9/Materials | Self-destructed Last Messages --------------- 00687_ Acquired 35 matter. 00700_ Dropped Hvy. Assault Rifle. 00701_ Dropped Lgt. Treads. 00702_ Acquired Prototype Energy Gun. 00703_ Identified Imp. Medium Laser. 00711_ Acquired 10 matter. 00732_ S-10 Pest suffers critical hit (Burn). 00738_ Lgt. Ion Engine melted. 00738_ S-10 Pest destroyed. 00745_ R-06 Scavenger inserts Tractor Beam into recycling unit. 00760_ Destroyed Flight Unit. 00760_ S-10 Pest suffers critical hit (Burn). 00767_ S-10 Pest critical meltdown. 00767_ Flight Unit melted. 00767_ Lgt. Ion Engine melted. 00778_ Connecting with Terminal... 00779_ Processing Tank disabled. 00781_ K-01 Serf collects debris. 00781_ Lgt. Ion Engine destroyed. 00782_ Flight Unit destroyed. Map ----- +----------------------------------------------------+ | ?????????????????????????????????????????????????? | | ?????????????????????????????????????????????????? | | ?????????????????????????????????????????????????? | | ?????????????????????????????????????????????????? | | ?????????????????????????????????????????????????? | | ?????????????????????????????????????????????????? | | ?????????????????????????????????????????????????? | | ?????????????????????????????????????????????????? | | ?????????????????????????????????????????????????? | | ?????????????????????????????????????????????????? | | ????????????????????????? ?????????????????????? | | # ??????? ????????????????????? | | # ###########??????? [!????????????????????? | | # # ##??????? a! ???????????????????? | | # # """"" ##????? # g ??????????????????? | | # # """"" ##????? # ]??????????????????? | | #### # """"" ##?????"# ???????????????????? | | ???# / ##?????"#t ???????????????????? | | #### # ## ? # ?? # #########? | | #### #####+############ g ? ################? | | # ##? | | g # ### | | " """ """ "" #"" """ """ ### | | ######## "" """ """u """ #"Y """ """ ## | | ### " """ """ """ w#"" """ """ ### | | """ ### """ """ @""" # ##? | | "T" ### """ """ """k #####+##########? | | *%! ## #########? | | * %+ % ##???????? | | """" ##!% wu s ########## | | """" #### #### ###;##"T"########## ########## | | """" ####+##### k ## ############## % ## | | ### # ## ##############+####### + | | ######## """ # ## # # ## ## | | ######## """ + ## + #% ## ## | | ######## """ # ## # /% ## ## | | # # ## # ! # """ """ ## ## | | " + # ## # ! # """ """ ## ## | | T ######## ###### # """ """ ## ## | | " ######## ##??## # ## ## | | "" # # ###### [ # ! ## ## | | "" # + #############+#########+## # | | ?????? # # # | | ?????? # # + | | ??????######### #####+####### #### # | | ?????? # ####+##### ## | | ????? + = # ????? # # | | ????? ########## = # ?????? + ?? | | ?????####################### [ # ?????? # ??? | | ?????###############??????## # ?????? # ??? | +----------------------------------------------------+ Best States ------------- Heat Dissipation 28 Energy Generation 14 Energy Capacity 280 Matter Stores 300 Matter Capacity 300 Sight Range 16 Terrain Scan Density 10 Evasion (%) 62 Recoil Reduction 2 Item Schematics ----------------- None Robot Schematics ------------------ None Fabricated ------------ Nothing Alien Tech Used ----------------- None Achievements -------------- None Challenges ------------ None Game ------ Seed ExplosiveSurveybotFirepult Manual? 0 Play Time 00:09:09 Cumulative 21.0 hours Start 2025.01.18 @ 21:35:24 End 2025.01.19 @ 13:19:42 Sessions 1 Manual Loads 0 Difficulty Rogue Special Mode None Game No. 90 Rogue 90 Adventurer 0 Explorer 0 Win Type - Total 0 Types 0/0/0/0/0/0/0/0/0 Lore% 17 Gallery% 22 Achievement% 24 Wizard Run 0 Options --------- Layout 0 ASCII 0 Keyboard 0 Movement Mouse Keybinds 0 Fullscreen 1 Font 18/SmallcapsGlow Map View 38x25 Zoom Use 99% Tactical HUD 1 Map Filters NONE Filters NONE Steam 1 RUN: 4c34600a-4d23-4598-aa2f-9e631f67195b